fUST/lending_fUST_20240727
["ID","MTS","AMOUNT","RATE_DAILY","PERIOD"]
[333326602,1722058242558,-500.0,0.00013698,2]
[333326603,1722058242568,-539.28780059,0.00013698,2]
[333326604,1722058242577,-521.79459093,0.00013698,2]
[333326605,1722058242588,-500.0,0.00013698,2]
[333326606,1722058242597,-500.0,0.00013698,2]
[333326607,1722058242606,-644.9,0.00013698,2]
[333326608,1722058242615,-500.0,0.00013698,2]
[333326609,1722058242625,-500.0,0.00013698,2]
[333326610,1722058242634,-165.537252,0.00013698,2]
[333326611,1722058242643,-165.537252,0.00013698,2]
[333326612,1722058242652,-500.0,0.00013698,2]
[333326613,1722058242661,-151.0,0.00013698,2]
[333326614,1722058242670,-165.537252,0.00013698,2]
[333326615,1722058242679,-151.0,0.00013698,2]
[333326616,1722058242689,-165.537252,0.00013698,2]
[333326617,1722058242698,-509.03541115,0.00013698,2]
[333326618,1722058242708,-630.61875871,0.00013698,2]
[333326619,1722058242718,-500.0,0.00013698,2]
[333326620,1722058242728,-500.0,0.00013698,2]
[333326621,1722058242739,-502.26380304,0.00013698,2]
[333326623,1722058242749,-500.0,0.00013698,2]
[333326624,1722058242761,-500.0,0.00013698,2]
[333326625,1722058242771,-500.0,0.00013698,2]
[333326626,1722058242779,-500.0,0.00013698,2]
[333326627,1722058242788,-500.0,0.00013698,2]
[333326628,1722058242797,-500.0,0.00013698,2]
[333326629,1722058242808,-500.0,0.00013698,2]
[333326630,1722058242818,-500.0,0.00013698,2]
[333326631,1722058242827,-500.0,0.00013698,2]
[333326632,1722058242838,-502.8981417,0.00013698,2]
[333326633,1722058242849,-500.0,0.00013698,2]
[333326634,1722058242860,-500.0,0.00013698,2]
[333326635,1722058242869,-500.0,0.00013698,2]
[333326636,1722058242879,-170.030515,0.00013698,2]
[333326637,1722058242889,-170.030515,0.00013698,2]
[333326638,1722058242898,-1613.79,0.00013698,2]
[333326639,1722058242907,-170.030515,0.00013698,2]
[333326640,1722058242917,-170.030515,0.00013698,2]
[333326641,1722058242927,-500.0,0.00013698,2]
[333326642,1722058242938,-151.639639,0.00013698,2]
[333326643,1722058242948,-151.0,0.00013698,2]
[333326644,1722058242959,-500.0,0.00013698,2]
[333326645,1722058242969,-151.0,0.00013698,2]
[333326646,1722058242979,-2281.35,0.00013698,2]
[333326647,1722058242990,-1168.4,0.00013698,2]
[333326648,1722058243001,-500.0,0.00013698,2]
[333326650,1722058243013,-500.0,0.00013698,2]
[333326652,1722058243022,-500.0,0.00013698,2]
[333326653,1722058243032,-1184.39,0.00013698,2]
[333326654,1722058243042,-500.0,0.00013698,2]
[333326655,1722058243052,-500.0,0.00013698,2]
[333326656,1722058243063,-500.66325794,0.00013698,2]
[333326657,1722058243072,-545.27,0.00013698,2]
[333326658,1722058243082,-2121.75,0.00013698,2]
[333326660,1722058243092,-500.0,0.00013698,2]
[333326661,1722058243101,-500.0,0.00013698,2]
[333326663,1722058243110,-500.0,0.00013698,2]
[333326665,1722058243120,-500.0,0.00013698,2]
[333326667,1722058243129,-151.0,0.00013698,2]
[333326669,1722058243139,-151.0,0.00013698,2]
[333326671,1722058243148,-1322.56,0.00013698,2]
[333326674,1722058243158,-5036.43,0.00013698,2]
[333326676,1722058243167,-500.0,0.00013698,2]
[333326678,1722058243178,-500.0,0.00013698,2]
[333326680,1722058243187,-500.0,0.00013698,2]
[333326682,1722058243197,-500.0,0.00013698,2]
[333326684,1722058243208,-500.0,0.00013698,2]
[333326686,1722058243217,-500.0,0.00013698,2]
[333326688,1722058243227,-503.59157369,0.00013698,2]
[333326690,1722058243236,-500.0,0.00013698,2]
[333326692,1722058243246,-500.0,0.00013698,2]
[333326694,1722058243258,-382.96,0.00013698,2]
[333326696,1722058243269,-500.0,0.00013698,2]
[333326698,1722058243279,-500.0,0.00013698,2]
[333326700,1722058243288,-501.69428418,0.00013698,2]
[333326702,1722058243299,-500.0,0.00013698,2]
[333326704,1722058243309,-500.0,0.00013698,2]
[333326706,1722058243318,-500.0,0.00013698,2]
[333326708,1722058243327,-500.0,0.00013698,2]
[333326710,1722058243339,-500.0,0.00013698,2]
[333326712,1722058243349,-151.0,0.00013698,2]
[333326714,1722058243359,-151.0,0.00013698,2]
[333326716,1722058243368,-737.77,0.00013698,2]
[333326719,1722058243378,-500.0,0.00013698,2]
[333326720,1722058243387,-559.12,0.00013698,2]
[333326723,1722058243397,-8661.72,0.00013698,2]
[333326725,1722058243407,-500.0,0.00013698,2]
[333326726,1722058243416,-500.0,0.00013698,2]
[333326729,1722058243427,-500.0,0.00013698,2]
[333326731,1722058243437,-1215.8,0.00013698,2]
[333326733,1722058243447,-659.48,0.00013698,2]
[333326735,1722058243459,-500.0,0.00013698,2]
[333326737,1722058243469,-3531.71,0.00013698,2]
[333326739,1722058243479,-500.0,0.00013698,2]
[333326741,1722058243488,-500.0,0.00013698,2]
[333326743,1722058243500,-2445.72,0.00013698,2]
[333326746,1722058243512,-500.0,0.00013698,2]
[333326748,1722058243524,-500.0,0.00013698,2]
[333326750,1722058243535,-500.0,0.00013698,2]
[333326752,1722058243545,-151.0,0.00013698,2]
[333326754,1722058243556,-500.0,0.00013698,2]
[333326756,1722058243565,-510.23796948,0.00013698,2]
[333326758,1722058243575,-500.0,0.00013698,2]
[333326760,1722058243584,-151.667555,0.00013698,2]
[333326762,1722058243594,-500.0,0.00013698,2]
[333326765,1722058243605,-500.0,0.00013698,2]
[333326767,1722058243614,-151.0,0.00013698,2]
[333326769,1722058243623,-151.0,0.00013698,2]
[333326771,1722058243633,-503.64346272,0.00013698,2]
[333326773,1722058243642,-1698.04,0.00013698,2]
[333326775,1722058243652,-500.0,0.00013698,2]
[333326777,1722058243661,-151.0,0.00013698,2]
[333326779,1722058243671,-151.0,0.00013698,2]
[333326781,1722058243680,-523.7,0.00013698,2]
[333326783,1722058243690,-500.0,0.00013698,2]
[333326785,1722058243701,-500.0,0.00013698,2]
[333326787,1722058243711,-888.43,0.00013698,2]
[333326789,1722058243720,-833.23,0.00013698,2]
[333326791,1722058243730,-151.0,0.00013698,2]
[333326793,1722058243740,-151.0,0.00013698,2]
[333326795,1722058243750,-500.0,0.00013698,2]
[333326797,1722058243761,-500.0,0.00013698,2]
[333326799,1722058243771,-598.99963481,0.00013698,2]
[333326801,1722058243780,-945.58,0.00013698,2]
[333326803,1722058243793,-500.0,0.00013698,2]
[333326805,1722058243802,-581.2,0.00013698,2]
[333326806,1722058243811,-504.06904756,0.00013698,2]
[333326809,1722058243821,-500.0,0.00013698,2]
[333326811,1722058243830,-501.50151605,0.00013698,2]
[333326812,1722058243840,-500.0,0.00013698,2]
[333326813,1722058243850,-151.0,0.00013698,2]
[333326814,1722058243859,-151.0,0.00013698,2]
[333326815,1722058243868,-500.0,0.00013698,2]
[333326816,1722058243878,-735.65,0.00013698,2]
[333326817,1722058243888,-540.71,0.00013698,2]
[333326818,1722058243898,-1992.72,0.00013698,2]
[333326819,1722058243907,-500.0,0.00013698,2]
[333326820,1722058243917,-151.0,0.00013698,2]
[333326821,1722058243926,-500.0,0.00013698,2]
[333326822,1722058243936,-151.0,0.00013698,2]
[333326823,1722058243945,-500.0,0.00013698,2]
[333326824,1722058243955,-1183.49,0.00013698,2]
[333326825,1722058243964,-1395.23,0.00013698,2]
[333326826,1722058243973,-756.78,0.00013698,2]
[333326827,1722058243982,-1870.98,0.00013698,2]
[333326828,1722058243992,-500.0,0.00013698,2]
[333326829,1722058244001,-500.0,0.00013698,2]
[333326830,1722058244014,-500.0,0.00013698,2]
[333326832,1722058244023,-500.0,0.00013698,2]
[333326834,1722058244033,-500.0,0.00013698,2]
[333326836,1722058244043,-6449.11,0.00013698,2]
[333326838,1722058244052,-3340.86,0.00013698,2]
[333326840,1722058244061,-500.0,0.00013698,2]
[333326842,1722058244071,-745.93,0.00013698,2]
[333326844,1722058244081,-500.0,0.00013698,2]
[333326846,1722058244090,-503.2947434,0.00013698,2]
[333326848,1722058244100,-500.0,0.00013698,2]
[333326850,1722058244109,-500.0,0.00013698,2]
[333326852,1722058244119,-304.88695626,0.00013698,2]
[333326854,1722058244128,-1076.5,0.00013698,2]
[333326856,1722058244138,-500.0,0.00013698,2]
[333326858,1722058244148,-500.0,0.00013698,2]
[333326860,1722058244158,-500.0,0.00013698,2]
[333326862,1722058244168,-500.0,0.00013698,2]
[333326864,1722058244179,-500.0,0.00013698,2]
[333326866,1722058244188,-509.97377995,0.00013698,2]
[333326868,1722058244198,-500.0,0.00013698,2]
[333326870,1722058244208,-500.0,0.00013698,2]
[333326872,1722058244217,-500.0,0.00013698,2]
[333326874,1722058244227,-500.0,0.00013698,2]
[333326876,1722058244236,-500.0,0.00013698,2]
[333326878,1722058244246,-2399.99,0.00013698,2]
[333326880,1722058244259,-500.0,0.00013698,2]
[333326882,1722058244270,-153.330096,0.00013698,2]
[333326884,1722058244280,-1201.57,0.00013698,2]
[333326886,1722058244290,-1040.67,0.00013698,2]
[333326888,1722058244300,-504.3622422,0.00013698,2]
[333326890,1722058244310,-1344.11,0.00013698,2]
[333326892,1722058244320,-151.0,0.00013698,2]
[333326894,1722058244330,-151.0,0.00013698,2]
[333326896,1722058244339,-500.0,0.00013698,2]
[333326898,1722058244350,-151.0,0.00013698,2]
[333326900,1722058244359,-151.0,0.00013698,2]
[333326902,1722058244369,-500.0,0.00013698,2]
[333326904,1722058244379,-500.0,0.00013698,2]
[333326906,1722058244388,-500.0,0.00013698,2]
[333326908,1722058244399,-673.71,0.00013698,2]
[333326910,1722058244410,-1382.66,0.00013698,2]
[333326912,1722058244421,-500.0,0.00013698,2]
[333326914,1722058244431,-975.54,0.00013698,2]
[333326916,1722058244441,-822.52,0.00013698,2]
[333326918,1722058244450,-1101.79,0.00013698,2]
[333326920,1722058244460,-500.0,0.00013698,2]
[333326922,1722058244470,-500.0,0.00013698,2]
[333326924,1722058244481,-655.42,0.00013698,2]
[333326926,1722058244491,-500.0,0.00013698,2]
[333326928,1722058244501,-504.37885215,0.00013698,2]
[333326930,1722058244513,-500.0,0.00013698,2]
[333326932,1722058244523,-500.0,0.00013698,2]
[333326934,1722058244537,-568.57275059,0.00013698,2]
[333326937,1722058244548,-840.293364,0.00013698,2]
[333326938,1722058244558,-840.293364,0.00013698,2]
[333326941,1722058244569,-500.0,0.00013698,2]
[333326943,1722058244578,-500.0,0.00013698,2]
[333326945,1722058244588,-838.52,0.00013698,2]
[333326946,1722058244598,-838.52,0.00013698,2]
[333326948,1722058244608,-840.293364,0.00013698,2]
[333326950,1722058244618,-840.293364,0.00013698,2]
[333326952,1722058244627,-838.52,0.00013698,2]
[333326954,1722058244637,-838.52,0.00013698,2]
[333326956,1722058244647,-838.52,0.00013698,2]
[333326958,1722058244656,-838.52,0.00013698,2]
[333326960,1722058244666,-838.52,0.00013698,2]
[333326962,1722058244676,-838.52,0.00013698,2]
[333326964,1722058244686,-788.14,0.00013698,2]
[333326966,1722058244695,-838.52,0.00013698,2]
[333326969,1722058244705,-838.52,0.00013698,2]
[333326971,1722058244715,-838.52,0.00013698,2]
[333326972,1722058244724,-500.0,0.00013698,2]
[333326975,1722058244735,-500.0,0.00013698,2]
[333326977,1722058244746,-500.0,0.00013698,2]
[333326979,1722058244756,-151.0,0.00013698,2]
[333326981,1722058244765,-500.0,0.00013698,2]
[333326983,1722058244776,-151.0,0.00013698,2]
[333326985,1722058244785,-2016.51,0.00013698,2]
[333326987,1722058244795,-1299.65,0.00013698,2]
[333326989,1722058244805,-526.43,0.00013698,2]
[333326991,1722058244814,-151.0,0.00013698,2]
[333326993,1722058244824,-1048.87,0.00013698,2]
[333326995,1722058244837,-151.0,0.00013698,2]
[333326997,1722058244849,-2800.2,0.00013698,2]
[333327000,1722058244859,-2281.33,0.00013698,2]
[333327002,1722058244870,-672.96,0.00013698,2]
[333327004,1722058244879,-231.20794325,0.00013698,2]
[333327006,1722058244890,-500.0,0.00013698,2]
[333327008,1722058244902,-460.28385884,0.00013698,2]
[333327010,1722058244913,-500.0,0.00013698,2]
[333327012,1722058244924,-199.47447173,0.00013698,2]
[333327015,1722058244934,-500.0,0.00013698,2]
[333327017,1722058244946,-500.0,0.00013698,2]
[333327019,1722058244955,-306.75004329,0.00013698,2]
[333327021,1722058244965,-500.0,0.00013698,2]
[333327023,1722058244976,-500.0,0.00013698,2]
[333327025,1722058244985,-500.0,0.00013698,2]
[333327027,1722058244997,-500.0,0.00013698,2]
[333327029,1722058245008,-500.0,0.00013698,2]
[333327032,1722058245023,-500.0,0.00013698,2]
[333327034,1722058245035,-500.0,0.00013698,2]
[333327036,1722058245044,-500.0,0.00013698,2]
[333327038,1722058245054,-500.0,0.00013698,2]
[333327040,1722058245065,-500.0,0.00013698,2]
[333327042,1722058245075,-500.0,0.00013698,2]
[333327044,1722058245084,-500.0,0.00013698,2]
[333327046,1722058245095,-500.0,0.00013698,2]
[333327048,1722058245105,-416.32007282,0.00013698,2]
[333327050,1722058245115,-500.0,0.00013698,2]
[333327052,1722058245124,-500.0,0.00013698,2]
[333327054,1722058245136,-816.88,0.00013698,2]
[333327056,1722058245145,-500.0,0.00013698,2]
[333327058,1722058245157,-2424.87,0.00013698,2]
[333327060,1722058245168,-500.0,0.00013698,2]
[333327062,1722058245177,-500.0,0.00013698,2]
[333327064,1722058245188,-3000.0,0.00013699,2]
[333327067,1722058245199,-151.0,0.00013699,2]
[333327069,1722058245210,-688.34386,0.00013699,2]
[333327071,1722058245221,-150.112233,0.000137,2]
[333327073,1722058245231,-247.4501742,0.00013736,2]
[333327075,1722058245242,-838.52,0.00013741,2]
[333327077,1722058245252,-499.19444796,0.00013784,2]
[333327079,1722058245267,-659.56256019,0.00013788,2]
[333327081,1722058245277,-151.0,0.00013794,2]
[333327083,1722058245288,-151.0,0.00013794,2]
[333327085,1722058245299,-151.0,0.00013794,2]
[333327088,1722058245310,-151.0,0.00013794,2]
[333327090,1722058245320,-840.293364,0.00013794,2]
[333327092,1722058245329,-840.293364,0.00013794,2]
[333327093,1722058245341,-151.0,0.00013794,2]
[333327095,1722058245351,-150.112233,0.000138,2]
[333327098,1722058245361,-150.112233,0.000138,2]
[333327100,1722058245372,-156.5036239,0.00013832,2]
[333327102,1722058245383,-211.61507161,0.00013849,2]
[333327104,1722058245392,-512.031,0.00013889,2]
[333327106,1722058245402,-1409.0,0.00013889,2]
[333327108,1722058245413,-150.112233,0.000139,2]
[333327110,1722058245423,-1383.77819087,0.000139,2]
[333327112,1722058245434,-150.112233,0.000139,2]
[333327114,1722058245444,-152.09328093,0.00013925,2]
[333327116,1722058245454,-166.39814932,0.00013952,2]
[333327118,1722058245464,-166.39814932,0.00013952,2]
[333327120,1722058245474,-165.537252,0.00013961,2]
[333327122,1722058245484,-151.0,0.00013961,2]
[333327124,1722058245493,-165.537252,0.00013961,2]
[333327126,1722058245503,-170.030515,0.00013961,2]
[333327127,1722058245513,-170.030515,0.00013961,2]
[333327130,1722058245524,-243.985484,0.00013961,2]
[333327132,1722058245536,-151.0,0.00013961,2]
[333327134,1722058245546,-158.339032,0.00013961,2]
[333327136,1722058245556,-151.0,0.00013961,2]
[333327137,1722058245565,-201.083394,0.00013961,2]
[333327139,1722058245575,-838.52,0.00013961,2]
[333327141,1722058245584,-838.52,0.00013961,2]
[333327143,1722058245594,-838.52,0.00013961,2]
[333327145,1722058245605,-838.52,0.00013961,2]
[333327147,1722058245616,-838.52,0.00013961,2]
[333327149,1722058245626,-838.52,0.00013961,2]
[333327151,1722058245637,-165.537252,0.00013962,2]
[333327153,1722058245648,-269.990382,0.00013962,2]
[333327155,1722058245658,-165.537252,0.00013962,2]
[333327157,1722058245667,-170.030515,0.00013962,2]
[333327170,1722058245677,-170.030515,0.00013962,2]
[333327173,1722058245806,-151.0,0.00013962,2]
[333327176,1722058245816,-151.0,0.00013962,2]
[333327178,1722058245827,-151.0,0.00013962,2]
[333327180,1722058245836,-151.0,0.00013962,2]
[333327182,1722058245848,-665.59259728,0.00013962,2]
[333327184,1722058245859,-5306.88604622,0.0001397,2]
[333327186,1722058245868,-151.0,0.00013971,2]
[333327188,1722058245878,-151.0,0.00013971,2]
[333327190,1722058245888,-838.52,0.00013971,2]
[333327194,1722058245897,-838.52,0.00013971,2]
[333327195,1722058245906,-838.52,0.00013971,2]
[333327197,1722058245916,-838.52,0.00013971,2]
[333327199,1722058245925,-838.52,0.00013971,2]
[333327201,1722058245934,-838.65652295,0.00013971,2]
[333327203,1722058245944,-149590.77732118,0.00013972,5]
[333327206,1722058245954,-500.0,0.00013972,2]
[333327208,1722058245964,-12.84754392,0.00013972,2]
[333327560,1722058249749,273.37336231,9.9e-05,2]
[333327733,1722058257846,273.37336231,9.9e-05,2]
[333327734,1722058267166,273.37336231,9.9e-05,2]
[333327735,1722058270172,568.64,0.00010959,2]
[333327736,1722058275223,273.37336231,9.9e-05,2]
[333327737,1722058280570,473.87,0.00010959,2]
[333327738,1722058284033,273.37336231,9.9e-05,2]
[333327739,1722058291080,394.89,0.00010959,2]
[333327740,1722058291961,273.37336231,9.9e-05,2]
[333327741,1722058300147,273.37336231,9.9e-05,2]
[333327742,1722058301819,329.08,0.00010959,2]
[333327743,1722058308197,273.37336231,9.9e-05,2]
[333327744,1722058312296,274.23,0.00010959,2]
[333327745,1722058313072,400.0,0.0001137,2]
[333327746,1722058313198,200.0,0.0001,2]
[333327747,1722058314943,1625.88982265,0.00010959,2]
[333327748,1722058316418,190.11665422,9.9e-05,2]
[333327749,1722058322797,228.52,0.00010959,2]
[333327750,1722058330746,956.24117625,0.00010959,2]
[333327751,1722058333329,190.44,0.00010959,2]
[333327752,1722058343827,158.7,0.00010959,2]
[333327753,1722058345795,16274.21667808,0.00010959,2]
[333327754,1722058345855,4579.73541545,0.0002,120]
[333327755,1722058348677,154.71377951,0.00010959,2]
[333327756,1722058440257,154.7688862,9.999e-05,4]
[333327766,1722058722414,-300.0,9.998e-05,2]
[333327767,1722058722452,-848.67298078,9.999e-05,2]
[333327768,1722058722488,-155.67502113,9.999e-05,2]
[333327769,1722058722524,-523.82100677,9.999e-05,2]
[333327770,1722058722561,-154.99669625,9.999e-05,2]
[333327771,1722058722597,-783.06362585,9.999e-05,2]
[333327772,1722058722632,-179.53247802,9.999e-05,2]
[333327773,1722058722669,-533.46933228,9.999e-05,2]
[333327774,1722058722886,-196.30125481,9.999e-05,2]
[333327775,1722058722923,-1761.21519204,9.999e-05,2]
[333327776,1722058722961,-157.93737666,9.999e-05,2]
[333327777,1722058722996,-559.09003319,9.999e-05,2]
[333327778,1722058723031,-200.0,0.0001,2]
[333327779,1722058771267,647.3422486,9.999e-05,2]
[333327780,1722058772341,200.0,0.0001,2]
[333327781,1722058847045,200.0,0.0001,2]
[333327782,1722058863048,375.7190477,9.999e-05,2]
[333327783,1722058870029,155.92581192,9.999e-05,2]
[333327784,1722058890267,431.56149907,9.999e-05,2]
[333327785,1722058912428,200.0,0.0001,2]
[333327786,1722058982920,200.0,0.0001,2]
[333327787,1722058991315,359.63458256,9.999e-05,2]
[333327788,1722059006287,359.63458256,9.999e-05,2]
[333327789,1722059022622,190.41886836,9.999e-05,2]
[333327790,1722059043354,200.0,0.0001,2]
[333327791,1722059061371,125.98836145,9.999e-05,2]
[333327792,1722059136158,-30.75276362,9.999e-05,2]
[333327793,1722059136179,-941.81566876,9.999e-05,2]
[333327794,1722059136200,-806.05588031,9.999e-05,2]
[333327795,1722059136221,-519.14870802,9.999e-05,2]
[333327796,1722059136241,-155.2936284,9.999e-05,2]
[333327797,1722059136261,-191.91152241,9.999e-05,2]
[333327798,1722059201910,-300.0,9.998e-05,2]
[333327799,1722059201946,-221.64873536,9.999e-05,2]
[333327800,1722059201982,-156.85144497,9.999e-05,2]
[333327801,1722059202039,-155.22571178,9.999e-05,2]
[333327802,1722059202077,-162.92919601,9.999e-05,2]
[333327803,1722059202115,-154.71377951,9.999e-05,2]
[333327804,1722059202348,-211.24707339,9.999e-05,2]
[333327805,1722059202385,-187.36961751,9.999e-05,2]
[333327806,1722059202420,-543.50091483,9.999e-05,2]
[333327807,1722059202463,-163.95980164,9.999e-05,2]
[333327808,1722059202499,-601.29751645,9.999e-05,2]
[333327809,1722059202535,-288.28494131,9.999e-05,2]
[333327810,1722059202572,-319.45250839,9.999e-05,2]
[333327811,1722059202613,-664.55696094,9.999e-05,2]
[333327812,1722059202648,-154.91450065,9.999e-05,2]
[333327813,1722059202682,-459.2503171,9.999e-05,2]
[333327814,1722059202722,-155.82908431,9.999e-05,2]
[333327815,1722059202758,-160.41510116,9.999e-05,2]
[333327816,1722059202800,-179.89635447,9.999e-05,2]
[333327817,1722059202838,-405.07981301,9.999e-05,2]
[333327818,1722059202877,-404.05886357,9.999e-05,2]
[333327819,1722059202915,-793.95241549,9.999e-05,2]
[333327820,1722059202952,-197.04219721,9.999e-05,2]
[333327821,1722059202987,-240.98064356,9.999e-05,2]
[333327822,1722059203021,-250.45346628,9.999e-05,2]
[333327823,1722059203065,-154.88367203,9.999e-05,2]
[333327824,1722059203104,-154.77940756,9.999e-05,2]
[333327825,1722059203146,-861.34572502,9.999e-05,2]
[333327826,1722059203185,-188.38233379,9.999e-05,2]
[333327827,1722059203220,-185.56073338,9.999e-05,2]
[333327828,1722059203256,-160.02872969,9.999e-05,2]
[333327829,1722059203291,-154.92730079,9.999e-05,2]
[333327830,1722059203327,-154.92240537,9.999e-05,2]
[333327831,1722059203362,-155.4445125,9.999e-05,2]
[333327832,1722059203397,-201.30530872,9.999e-05,2]
[333327833,1722059203431,-95.50891225,9.999e-05,2]
[333327836,1722059231111,-59.28795184,9.999e-05,2]
[333327837,1722059231135,-200.77631143,9.999e-05,2]
[333327838,1722059231158,-155.08484494,9.999e-05,2]
[333327839,1722059231182,-726.90527473,9.999e-05,2]
[333327841,1722059231205,-342.86260909,9.999e-05,2]
[333327842,1722059231227,-384.65399918,0.0001,2]
[333327848,1722059245089,-248.87416602,9.999e-05,2]
[333327849,1722059245112,-6.0867387,0.0001,2]
[333327850,1722059245132,-154.71377951,0.0001,2]
[333327851,1722059245153,-200.0,0.0001,2]
[333327852,1722059245174,-300.0,0.00010958,2]
[333327853,1722059245195,-166.666666,0.00010959,2]
[333327854,1722059245216,-793.51,0.00010959,2]
[333327855,1722059245241,-736.87,0.00010959,2]
[333327856,1722059245262,-257.68756869,0.0001137,2]
[333327857,1722059245286,-4706.31905282,0.00011383,2]
[333327858,1722059251099,-13584.99657078,0.00011383,2]
[333327859,1722059251119,-2377.4723899,0.00011473,2]
[333327860,1722059251142,-250.0,0.0001157,2]
[333327861,1722059251165,-250.0,0.00011602,2]
[333327862,1722059251188,-250.0,0.00011634,2]
[333327863,1722059251215,-250.0,0.00011665,2]
[333327864,1722059251237,-250.0,0.00011697,2]
[333327865,1722059251260,-166.666666,0.00011703,2]
[333327866,1722059251283,-250.0,0.00011729,2]
[333327867,1722059251306,-250.0,0.00011761,2]
[333327868,1722059251331,-250.0,0.00011792,2]
[333327869,1722059251354,-250.0,0.00011824,2]
[333327870,1722059251375,-250.0,0.00011856,2]
[333327871,1722059251396,-250.0,0.00011888,2]
[333327872,1722059251418,-250.0,0.00011919,2]
[333327873,1722059251440,-250.0,0.00011951,2]
[333327874,1722059251462,-250.0,0.00011983,2]
[333327875,1722059251483,-250.0,0.00012014,2]
[333327876,1722059251507,-250.0,0.00012046,2]
[333327877,1722059251529,-420.0,0.00012054,2]
[333327878,1722059251551,-250.0,0.00012078,2]
[333327879,1722059251575,-250.0,0.0001211,2]
[333327880,1722059251596,-187.36961751,0.0001212,2]
[333327881,1722059251621,-250.0,0.00012141,2]
[333327882,1722059251643,-250.0,0.00012173,2]
[333327883,1722059251666,-166.666666,0.00012447,2]
[333327884,1722059251687,-287.0,0.00013259,2]
[333327885,1722059251713,-181.986011,0.00013425,2]
[333327886,1722059251736,-7022.28372496,0.00013598,2]
[333327887,1722059251759,-1945.47989268,0.00013598,2]
[333327888,1722059251779,-2000.0,0.00013598,2]
[333327889,1722059251801,-7022.28372492,0.00013624,2]
[333327890,1722059251821,-7022.28372492,0.00013649,2]
[333327891,1722059251841,-7022.28372492,0.00013675,2]
[333327892,1722059251862,-620.5913029,0.00013677,2]
[333327893,1722059251885,-36101.47857566,0.00013688,2]
[333327894,1722059252231,-208.79805503,0.0001212,2]
[333327895,1722059252256,-9480.96197226,0.00013688,2]
[333327900,1722059352096,-813.00772694,9.999e-05,2]
[333327901,1722059352116,-187.36961751,9.999e-05,2]
[333327902,1722059352136,-154.71377951,9.999e-05,2]
[333327905,1722059414230,447.69,0.00010959,2]
[333327946,1722059432982,-158.338338,0.00012788,2]
[333327947,1722059432991,-158.338338,0.00012862,2]
[333327948,1722059433001,-158.338338,0.00012936,2]
[333327949,1722059433011,-2.24246678,0.00013011,2]
[333327965,1722059438450,-156.09587122,0.00013011,2]
[333327968,1722059438460,-158.338338,0.00013085,2]
[333327970,1722059438470,-158.338338,0.00013159,2]
[333327972,1722059438480,-158.338338,0.00013233,2]
[333327974,1722059438489,-158.338338,0.00013307,2]
[333327976,1722059438498,-158.338338,0.00013381,2]
[333327978,1722059438508,-158.338338,0.00013455,2]
[333327980,1722059438518,-438.00798723,0.00013598,2]
[333327982,1722059438530,-302.508594,0.00013598,2]
[333327984,1722059438556,-149.095943,0.00013598,2]
[333327985,1722059438566,-2576.7873177,0.00013688,2]
[333327986,1722059438578,-3042.8657378,0.00013688,2]
[333327987,1722059438588,-500.0,0.00013698,2]
[333327988,1722059438599,-500.0,0.00013698,2]
[333327989,1722059438610,-500.0,0.00013698,2]
[333327990,1722059438622,-500.0,0.00013698,2]
[333327991,1722059438631,-500.0,0.00013698,2]
[333327992,1722059438641,-500.0,0.00013698,2]